Workbook

Sheet Instruções
A6: AGÊNCIA DE INOVAÇÃO E TRANSFERÊNCIA DE TECNOLOGIA - INOVA
A7: DISCRIMINAÇÃO DE CUSTOS COM REPASSE PREVISTO POR MEIO DE FUNDAÇÃO DE APOIO
A9: INSTRUÇÕES PARA O PREENCHIMENTO
A11: Caro(a) servidor(a), siga as seguintes etapas:
A12: I- Preencha a planilha "LANÇAMENTO". É a única planilha que deve ser preenchida
A13: II- Consulte os dados gerados automaticamente na planilha "Gerar PDF - Detalhamento"
A14: III- Gere um arquivo PDF a partir da planilha "Gerar PDF - Detalhamento"
A16: IMPORTANTE:
A17: - todos os valores devem ser informados em Reais. Converta os valores de dólar para Real, caso necessário
A18: - se houver itens importados ou serviços do exterior, o campo "TAXA DE CÂMBIO (US$ --> R$)" é obrigatório
A19: - para lançamento de bolsas ou salários, incluir uma pessoa/vaga por linha e selecionar a unidade "Mês"
A20: - Não digitar a mesma descrição (texto exato) em linhas diferentes: ex: "Bolsista" e "Bolsista". Digite: "Bolsista 1" em uma linha e "Bolsista 2" na outra, caso o projeto tenha previsão de dois bolsistas, por exemplo.
A21: - o campo "Valor cobrado pela Fundação de Apoio" está provisoriamente preenchido com 15% do valor parcial do projeto
A22: - envie o Projeto de Pesquisa e a Planilha de Custos para as Fundações de Apoio para identificar a melhor proposta
A23: - após receber os orçamentos das fundações, escolha uma e atualize o campo "Valor cobrado pela Fundação de Apoio"
A25: A coluna "Quant." deve ser preenchida conforme orientações abaixo:
A26: - item quantificável (ex: computador): incluir a quantidade de itens / produtos / peças
A27: - pagamento mensal (ex: bolsas, salários ou despesas mensais): incluir o número de meses (utilize a unidade: Mês)
A28: - item não quantificáveis (ex: serviços): deixar em branco
A30: GRUPOS DE CUSTOS | C30: DESCRIÇÃO
A31: Contratação CLT | C31: Contratação de pessoal de apoio ao projeto por meio da CLT. Discriminar o tipo de profissional, o valor mensal líquido, o número de meses. Incluir as taxas trabalhistas
A32: Despesa | C32: Despesas mensais / anuais do projeto (ex: tarifa de manutenção de conta corrente)
A33: Diárias e passagens | C33: Descrever o montante, o tipo (passagens ou diárias) e o número de pessoas a serem atendidas
A34: Material de consumo importado | C34: Consumíveis importados como vidraria, reagentes, componentes elétrônicos, cabos, conectores e acessórios não-patrinoníáveis. Considerar eventuais taxas de importação
A35: Material de consumo nacional | C35: Consumíveis nacionais como vidraria, reagentes, componentes elétrônicos, cabos, conectores e acessórios não-patrinoníáveis
A36: Material permanente importado | C36: Considerar cada conjunto patrimoniável de equipamentos e acessórios, softwares e livros patrimoniáveis. Considerar eventuais taxas de importação
A37: Material permanente nacional | C37: Considerar cada conjunto patrimoniável de equipamentos e acessórios, softwares e livros patrimoniáveis
A38: Pagamento a discente | C38: Bolsa de iniciação científica ou Estágio pago pela Fundação, discriminando o nível do discente (não há encargos trabalhistas)
A39: Pagamento a servidor | C39: Bolsa bolsa paga pela Fundação, discriminando a função do servidor no projeto
A40: Serviços de terceiros nacional | C40: Serviços prestados por pessoas jurídicas com nota fiscal fornecida no Brasil
A41: Serviços de terceiros no exterior | C41: Serviços prestados por pessoas jurídicas com nota fiscal fornecida no exterior
A43: Outras dúvidas, entrar em contato com o Agente de Prospecção de seu câmpus ou com a INOVA (inova@ifsp.edu.br)

Sheet Lançamento
A1: AGÊNCIA DE INOVAÇÃO E TRANSFERÊNCIA DE TECNOLOGIA - INOVA
A2: DISCRIMINAÇÃO DE CUSTOS COM REPASSE PREVISTO POR MEIO DE FUNDAÇÃO DE APOIO
A3: TÍTULO DO PROJETO:
A4: digite o título do projeto aqui (planilha LANÇAMENTO)
A5: Descrição (somente 1 linha para cada item) - max 100 caracteres obs: lançamento de bolsas ou salários, incluir uma pessoa/vaga por linha - utilize a unidade: Mês | B5: Grupo (campo obrigatório!) | C5: Quant. | D5: Unidade | E5: Valor Unitário em Reais (R$) | F5: Valor Total em Reais (R$) | G5: Lançamento
A6: Despesas Bancárias e de Correio - Item obrigatório exigido pelas Fundações de Apoio | B6: Despesa | D6: Mês | E6: =IF(C6="","<- digitar quant. meses",50) -> <- digitar quant. meses | F6: =IF(C6="","digitar quant. meses",C6*E6) -> digitar quant. meses | G6: =IF(D6="",A6,_xlfn.CONCAT(A6," "," [Unidade: ",D6,"]")) -> Despesas Bancárias e de Correio - Item obrigatório exigido pelas Fundações de Apoio [Unidade: Mês] | I6: <-- proibida a exclusão desta despesa
A7: Bolsa Servidor 1 (Coordenador do Projeto) - José Saramago, 10 horas semanais | B7: Pagamento a servidor | C7: 12 | D7: Mês | E7: 1500 | F7: =IF(C7="",E7,C7*E7) -> 18000 | G7: Bolsa Servidor 1 (Coordenador do Projeto) - José Saramago, 10 horas semanais [Unidade: Mês]
A8: Bolsa Servidor 2 (Pesquisador) - Ana Ribeiro, 6 horas semanais | B8: Pagamento a servidor | C8: 12 | D8: Mês | E8: 1500 | F8: =IF(C8="",E8,C8*E8) -> 18000 | G8: Bolsa Servidor 2 (Pesquisador) - Ana Ribeiro, 6 horas semanais [Unidade: Mês] | I8: IMPORTANTE: Na coluna Descrição, não digite o mesmo texto em linha diferentes: ex: "Bolsa discente - a definir" e "Bolsa discente - a definir". Digite assim: "Bolsa discente 1 - a definir" em uma linha, e, "Bolsa discente 2 - a definir" em outra linha. Assim a tabela consolidada entenderá que são duas pessoas
A9: Bolsa Discente 1 - a definir | B9: Pagamento a discente | C9: 12 | D9: Mês | E9: 900 | F9: 10800 | G9: Bolsa Discente 1 - a definir [Unidade: Mês]
A10: Bolsa Discente 2 - a definir | B10: Pagamento a discente | C10: 12 | D10: Mês | E10: 900 | F10: 10800 | G10: Bolsa Discente 2 - a definir [Unidade: Mês]
A11: Bolsa Discente 3 - a definir | B11: Pagamento a discente | C11: 12 | D11: Mês | E11: 900 | F11: 10800 | G11: Bolsa Discente 3 - a definir [Unidade: Mês]
A12: Bolsa Discente 4 - a definir | B12: Pagamento a discente | C12: 12 | D12: Mês | E12: 900 | F12: 10800 | G12: Bolsa Discente 4 - a definir [Unidade: Mês]
A13: Osciloscópio Tektronics mod. DSO-4548 | B13: Material permanente nacional | C13: 2 | D13: Peça (pç) | E13: 4000 | F13: 8000 | G13: Osciloscópio Tektronics mod. DSO-4548 [Unidade: Peça (pç)]
A14: Medidor de LCR de precisão Keysight mod. E4980A , 20 Hz a 2 MHz | B14: Material permanente importado | C14: 1 | D14: Peça (pç) | E14: 102000 | F14: 102000 | G14: Medidor de LCR de precisão Keysight mod. E4980A , 20 Hz a 2 MHz [Unidade: Peça (pç)]
A15: Papel Sulfite A4 Branco | B15: Material de consumo nacional | C15: 70 | D15: Resma (RM) | E15: 19.9 | F15: 1393 | G15: Papel Sulfite A4 Branco [Unidade: Resma (RM)]
A16: Material (fibra de carbono) para corpos de prova | B16: Material de consumo importado | C16: 10 | D16: Metro (m) | E16: 690 | F16: 6900 | G16: Material (fibra de carbono) para corpos de prova [Unidade: Metro (m)]
A17: Manutenção de componentes eletrônicos | B17: Serviços de terceiros nacional | E17: 5000 | F17: 5000 | G17: Manutenção de componentes eletrônicos
A18: Calibração de equipamento X | B18: Serviços de terceiros no exterior | E18: 7000 | F18: 7000 | G18: Calibração de equipamento X
A19: Contratação de um Engenheiro - CLT | B19: Contratação CLT | C19: 12 | D19: Mês | E19: 9000 | F19: 108000 | G19: Contratação de um Engenheiro - CLT [Unidade: Mês] | I19: Há campos para preencher ao final da planilha!
A20: Encargos de folha de pagamento - Engenheiro CLT (100% do salário bruto) | B20: Contratação CLT | C20: 12 | D20: Mês | E20: 9000 | F20: 108000 | G20: Encargos de folha de pagamento - Engenheiro CLT (100% do salário bruto) [Unidade: Mês]
A21: Dárias para participação em reunão científica (3 pessoas) | B21: Diárias e passagens | C21: 3 | D21: Und. | E21: 3300 | F21: 9900 | G21: Dárias para participação em reunão científica (3 pessoas) [Unidade: Und.]
A22: Passagens para participação em reunião científica (3 pessoas) | B22: Diárias e passagens | C22: 3 | D22: Und. | E22: 4000 | F22: 12000 | G22: Passagens para participação em reunião científica (3 pessoas) [Unidade: Und.]
F23: 0 | G23: 0
F24: 0 | G24: 0
F25: 0 | G25: 0
F26: 0 | G26: 0
F27: 0 | G27: 0
F28: 0 | G28: 0
F29: 0 | G29: 0
F30: 0 | G30: 0
F31: 0 | G31: 0
F32: 0 | G32: 0
F33: 0 | G33: 0
F34: 0 | G34: 0
F35: 0 | G35: 0
F36: 0 | G36: 0
F37: 0 | G37: 0
F38: 0 | G38: =IF(D38="",A38,_xlfn.CONCAT(A38," "," [Unidade: ",D38,"]")) -> 0
F39: 0 | G39: 0
F40: 0 | G40: 0
F41: 0 | G41: 0
F42: 0 | G42: 0
F43: 0 | G43: 0
F44: 0 | G44: 0
F45: 0 | G45: 0
F46: 0 | G46: 0
F47: 0 | G47: 0
F48: 0 | G48: 0
F49: 0 | G49: 0
F50: 0 | G50: 0
F51: 0 | G51: 0
F52: 0 | G52: 0
F53: 0 | G53: 0
F54: 0 | G54: 0
F55: 0 | G55: 0
F56: 0 | G56: 0
F57: 0 | G57: 0
F58: 0 | G58: 0
F59: 0 | G59: 0
F60: 0 | G60: 0
F61: 0 | G61: 0
F62: 0 | G62: 0
F63: 0 | G63: 0
F64: 0 | G64: 0
F65: 0 | G65: 0
F66: 0 | G66: 0
F67: 0 | G67: 0
F68: 0 | G68: 0
F69: 0 | G69: 0
F70: 0 | G70: =IF(D70="",A70,_xlfn.CONCAT(A70," "," [Unidade: ",D70,"]")) -> 0
F71: 0 | G71: 0
F72: =IF(C72="",E72,C72*E72) -> 0 | G72: 0
F73: =IF(C73="",E73,C73*E73) -> 0 | G73: 0
F74: =IF(C74="",E74,C74*E74) -> 0 | G74: 0
F75: =IF(C75="",E75,C75*E75) -> 0 | G75: 0
A76: TAXA DE CÂMBIO (US$ --> R$) CONSIDERADA : | B76: 0 | C76: VALOR PARCIAL: | F76: =SUM(F6:F75) -> 447393
A77: VALOR COBRADO PELA FUNDAÇÃO DE APOIO: | B77: 0 | C77: VALOR TOTAL: | F77: =F76+B77+B78 -> 478184.44
A78: TAXA DE RESSARCIMENTO INSTITUCIONAL (TRI): | B78: =IF(F76<=50000,4%*F76,IF(F76<=200000,6%*F76-1000,IF(F76<=1000000,8%*F76-5000,IF(F76>1000000,10%*F76-25000,0)))) -> 30791.44 | C78: obs: atualize somente se houve lançamento de itens importados ou serviços do exterior

Sheet Gerar PDF - Consolidada (hidden)
D1: INSTITUTO FEDERAL DE EDUCAÇÃO, CIÊNCIA E TECNOLOGIA DE SÃO PAULO
D2: AGÊNCIA DE INOVAÇÃO E TRANSFERÊNCIA DE TECNOLOGIA - INOVA / IFSP
D3: PROJETO DE PESQUISA COM CONTRAPARTIDA FINANCEIRA
A5: PLANILHA DE CUSTOS CONSOLIDADA
A7: TÍTULO DO PROJETO
A8: =Lançamento!A4 -> digite o título do projeto aqui (planilha LANÇAMENTO)
A10: ITEM DE CUSTO | G10: VALOR
A12: CONTRATAÇÃO CLT | G12: =SUMIF(Lançamento!B6:B75,"Contratação CLT",Lançamento!F6:F75) -> 216000
A13: DESPESAS | G13: =SUMIF(Lançamento!B6:B75,"Despesa",Lançamento!F6:F75) -> 0
A14: DIÁRIAS E PASSAGENS | G14: =SUMIF(Lançamento!B6:B75,"Diárias e passagens",Lançamento!F6:F75) -> 21900
A15: MATERIAL DE CONSUMO IMPORTADO | G15: =SUMIF(Lançamento!B6:B75,"Material de consumo importado",Lançamento!F6:F75) -> 6900
A16: MATERIAL DE CONSUMO NACIONAL | G16: =SUMIF(Lançamento!B6:B75,"Material de consumo nacional",Lançamento!F6:F75) -> 1393
A17: MATERIAL PERMANENTE IMPORTADO | G17: =SUMIF(Lançamento!B6:B75,"Material permanente importado",Lançamento!F6:F75) -> 102000
A18: MATERIAL PERMANENTE NACIONAL | G18: =SUMIF(Lançamento!B6:B75,"Material permanente nacional",Lançamento!F6:F75) -> 8000
A19: PAGAMENTO A DISCENTE | G19: =SUMIF(Lançamento!B6:B75,"Pagamento a discente",Lançamento!F6:F75) -> 43200
A20: PAGAMENTO A SERVIDOR | G20: =SUMIF(Lançamento!B6:B75,"Pagamento a servidor",Lançamento!F6:F75) -> 36000
A21: SERVIÇOS DE TERCEIROS NACIONAL | G21: =SUMIF(Lançamento!B6:B75,"Serviços de terceiros nacional",Lançamento!F6:F75) -> 5000
A22: SERVIÇOS DE TERCEIROS NO EXTERIOR | G22: =SUMIF(Lançamento!B6:B75,"Serviços de terceiros no exterior",Lançamento!F6:F75) -> 7000
B25: TOTAL NACIONAL | G25: =SUM(G19,G20,G13,G16,G18,G14,G12,G21) -> 331493
A27: TOTAL IMPORTADO: | D27: =IF(G29="taxa não informada","taxa não informada",G27/G29) ->  | F27: em Reais: | G27: =SUM(G15,G17,G22) -> 115900
A29: TAXA DE CÂMBIO (US$ --> R$) CONSIDERADA | G29: =IF(Lançamento!B76="digite o valor aqui","taxa não informada",Lançamento!B76) -> 0
A30: http://www.bcb.gov.br/
B32: TOTAL PARCIAL | G32: =G25+G27 -> 447393
B34: RESSARCIMENTO INSTITUCIONAL | G34: =Lançamento!B78 -> 30791.44
B35: De acordo com o art. 1º da Resolução nº 127/2016
B37: PAGAMENTO À FUNDAÇÃO DE APOIO | G37: =Lançamento!B77 -> 0
A40: CUSTO TOTAL DO PROJETO | G40: =G32+G34+G37 -> 478184.44

Sheet Gerar PDF - Detalhamento
A1: INSTITUTO FEDERAL DE EDUCAÇÃO, CIÊNCIA E TECNOLOGIA DE SÃO PAULO
A2: AGÊNCIA DE INOVAÇÃO E TRANSFERÊNCIA DE TECNOLOGIA - INOVA / IFSP
A3: PROJETO DE PESQUISA COM CONTRAPARTIDA FINANCEIRA
A5: PLANILHA DE CUSTOS CONSOLIDADA
A7: TÍTULO DO PROJETO
A8: =Lançamento!A4 -> digite o título do projeto aqui (planilha LANÇAMENTO)
A9: Total Nacional: | D9: ='Gerar PDF - Consolidada'!G25 -> 331493
A10: Total Importado: | C10: ='Gerar PDF - Consolidada'!D27 ->  | D10: ='Gerar PDF - Consolidada'!G27 -> 115900
A11: Taxa de Câmbio (US$ -> R$) Considerada: | D11: =IF(C10>0,'Gerar PDF - Consolidada'!G29,"-") -> 
A12: Total Parcial: | D12: ='Gerar PDF - Consolidada'!G32 -> 447393
A13: Pagamento à Fundação de Apoio: | D13: ='Gerar PDF - Consolidada'!G37 -> 0
A14: Taxa de Restituição Institucional (TRI): | D14: ='Gerar PDF - Consolidada'!G34 -> 30791.44
A15: CUSTO TOTAL DO PROJETO: | D15: =D12+D13+D14 -> 478184.44
A17: Lançamento | B17: Qtd | C17: V. Unitário | D17: V. Total
A18: Contratação CLT | B18: 24 | C18: 18000 | D18: 216000
A19: Contratação de um Engenheiro - CLT [Unidade: Mês] | B19: 12 | C19: 9000 | D19: 108000
A20: Encargos de folha de pagamento - Engenheiro CLT (100% do salário bruto) [Unidade: Mês] | B20: 12 | C20: 9000 | D20: 108000
A21: Despesa | C21: 0 | D21: 0
A22: Despesas Bancárias e de Correio - Item obrigatório exigido pelas Fundações de Apoio [Unidade: Mês] | C22: 0 | D22: 0
A23: Diárias e passagens | B23: 6 | C23: 7300 | D23: 21900
A24: Dárias para participação em reunão científica (3 pessoas) [Unidade: Und.] | B24: 3 | C24: 3300 | D24: 9900
A25: Passagens para participação em reunião científica (3 pessoas) [Unidade: Und.] | B25: 3 | C25: 4000 | D25: 12000
A26: Material de consumo importado | B26: 10 | C26: 690 | D26: 6900
A27: Material (fibra de carbono) para corpos de prova [Unidade: Metro (m)] | B27: 10 | C27: 690 | D27: 6900
A28: Material de consumo nacional | B28: 70 | C28: 19.9 | D28: 1393
A29: Papel Sulfite A4 Branco [Unidade: Resma (RM)] | B29: 70 | C29: 19.9 | D29: 1393
A30: Material permanente importado | B30: 1 | C30: 102000 | D30: 102000
A31: Medidor de LCR de precisão Keysight mod. E4980A , 20 Hz a 2 MHz [Unidade: Peça (pç)] | B31: 1 | C31: 102000 | D31: 102000
A32: Material permanente nacional | B32: 2 | C32: 4000 | D32: 8000
A33: Osciloscópio Tektronics mod. DSO-4548 [Unidade: Peça (pç)] | B33: 2 | C33: 4000 | D33: 8000
A34: Pagamento a discente | B34: 48 | C34: 3600 | D34: 43200
A35: Bolsa Discente 1 - a definir [Unidade: Mês] | B35: 12 | C35: 900 | D35: 10800
A36: Bolsa Discente 2 - a definir [Unidade: Mês] | B36: 12 | C36: 900 | D36: 10800
A37: Bolsa Discente 3 - a definir [Unidade: Mês] | B37: 12 | C37: 900 | D37: 10800
A38: Bolsa Discente 4 - a definir [Unidade: Mês] | B38: 12 | C38: 900 | D38: 10800
A39: Pagamento a servidor | B39: 24 | C39: 3000 | D39: 36000
A40: Bolsa Servidor 2 (Pesquisador) - Ana Ribeiro, 6 horas semanais [Unidade: Mês] | B40: 12 | C40: 1500 | D40: 18000
A41: Bolsa Servidor 1 (Coordenador do Projeto) - José Saramago, 10 horas semanais [Unidade: Mês] | B41: 12 | C41: 1500 | D41: 18000
A42: Serviços de terceiros nacional | C42: 5000 | D42: 5000
A43: Manutenção de componentes eletrônicos | C43: 5000 | D43: 5000
A44: Serviços de terceiros no exterior | C44: 7000 | D44: 7000
A45: Calibração de equipamento X | C45: 7000 | D45: 7000
A46: (vazio) | D46: 0
A47: 0 | D47: 0
A48: Total Parcial | B48: 185 | C48: 150609.9 | D48: 447393

Sheet Fonte DropDown (hidden)
A1: Contratação CLT | B1: Mês
A2: Despesa | B2: Und.
A3: Diárias e passagens | B3: Resma (RM)
A4: Material de consumo importado | B4: Peça (pç)
A5: Material de consumo nacional | B5: Miligrama (mg)
A6: Material permanente importado | B6: Grama (g)
A7: Material permanente nacional | B7: Quilo (kg)
A8: Pagamento a discente | B8: Mililitro (mL)
A9: Pagamento a servidor | B9: Litro (L)
A10: Serviços de terceiros nacional | B10: Centímetro (cm)
A11: Serviços de terceiros no exterior | B11: Metro (m)
B12: Metro quadrado (m²)
B13: Metro cúbico (m³)
